Cogmind - Beta 12 *** ADVENTURER MODE // 2024.01.01 @ 22:27:56 // Winter2019/RPGLIKE Player: Noname Result: Escaped! Performance ------------- Evolutions (9) 4500 Regions Visited (24) 4800 Robots Destroyed (406) 2030 Value Destroyed (21678) 21678 Prototype IDs (61) 1220 Alien Tech Used (0) 0 Bonus (11758) 11758 TOTAL SCORE: 45986 Bonus ------- High Alert Combat Kills 2642 Follower Combat Kills 266 Entered Garrisons 1600 Used RIF Installer 4000 Aligned with FarCom 300 Win 3000 Friendly Fire -50 Cogmind --------- Core Integrity 850/850 Matter 376/400 Energy 3092/3099 System Corruption 0% Temperature Cool (5) Movement Hovering (51) Location To Epsilon Eridani Parts ------- > --- POWER (3) -------- Multi-Particle Reactor > --- PROPULSION (4) --- Hovering Gravjet Exoskeleton > --- UTILITY (13) ----- Armored Scrap Engine Advanced Cooling System Advanced Coolant Injector Superbattery (fused) Improved Armor Integrity Analyzer Precision Matter Filter Particle Charger Quantum Capacitor Advanced Transmission Jammer Advanced Phase Shifter Relay Coupler [Swarmer] (86) > --- WEAPON (3) ------- Hvy. Thermal Quantum Construct/C Enhanced Force Lance > --- INVENTORY (6) ---- Advanced Power Amplifier Improved Trap Scanner Graphene Brace Antimissile System Improved Dynamic Insulation System Advanced System Restoration Module Peak State ------------ > --- POWER ------------ Multi-Particle Reactor > --- PROPULSION ------- Hovering Gravjet Exoskeleton > --- UTILITY ---------- Armored Scrap Engine Advanced Cooling System Advanced Coolant Injector Superbattery Improved Armor Integrity Analyzer Particle Charger Quantum Capacitor Advanced Transmission Jammer Advanced Phase Shifter Relay Coupler [Swarmer] Improved Dynamic Insulation System > --- WEAPON ----------- Hvy. Thermal Quantum Construct/C Enhanced Force Lance > --- INVENTORY -------- Advanced Power Amplifier Improved Trap Scanner Precision Matter Filter Graphene Brace Antimissile System Advanced System Restoration Module [Rating: 181] Favorites ----------- Power Constructs Engine Heavy Ion Engine Reactor Constructs Propulsion Constructs Leg Makeshift Leg Wheel Wheel Hover Unit Constructs Utility Superbattery Device Particle Charger Storage Superbattery Processor Advanced Signal Interpreter Hackware Relay Coupler [Swarmer] Protection Light Armor Plating Weapon Constructs Energy Gun Beamcaster Energy Cannon Constructs Ballistic Gun Heavy Assault Rifle Ballistic Cannon Gauss Cannon Launcher Improved Proton Missile Launcher Slashing Weapon Power Sword Piercing Weapon Enhanced Force Lance Build | -11 -10 -10 -10 -9 -8 -8 -8 -6 -6 -6 -6 -5 -5 -5 -5 -4 -4 -3 -3 -3 -3 -2 -2 -1 ------- Run | Jun Mat Min Exi Min Mat Sto Rec Fac Gar Fac Gar Fac Gar Fac Gar Fac Gar Res Gar Res Gar Res Gar Acc Slots Evolved 19 | 1 1 1 2 1 4 2 . 1 1 . 1 . 1 . . . . 1 1 . . . . 1 Power 2 | . . . . . . 1 . . . . . . . . . . . . 1 . . . . . Propulsion 3 | 1 . . . . 1 1 . . . . . . . . . . . . . . . . . . Utility 12 | . . 1 2 1 3 . . 1 . . 1 . 1 . . . . 1 . . . . . 1 Weapon 2 | . 1 . . . . . . . 1 . . . . . . . . . . . . . . . Parts Attached 182 | 4 2 4 1 12 12 22 3 3 5 11 6 13 5 9 3 5 3 10 9 6 1 9 2 22 Power 4 | 1 . . . 1 1 1 . . . . . . . . . . . . . . . . . . Engine 4 | 1 . . . 1 1 1 . . . . . . . . . . . . . . . . . . Core . | . . . . . . . . . . . . . . . . . . . . . . . . . Reactor . | . . . . . . . . . . . . . . . . . . . . . . . . . Propulsion 13 | 2 . 2 . . 4 5 . . . . . . . . . . . . . . . . . . Treads . | . . . . . . . . . . . . . . . . . . . . . . . . . Leg 3 | . . . . . 3 . . . . . . . . . . . . . . . . . . . Wheel 2 | 2 . . . . . . . . . . . . . . . . . . . . . . . . Hover 8 | . . 2 . . 1 5 . . . . . . . . . . . . . . . . . . Flight . | . . . . . . . . . . . . . . . . . . . . . . . . . Utility 124 | . . 2 1 7 5 1 3 3 4 10 4 11 2 8 2 3 3 8 9 6 1 9 2 20 Device 107 | . . . . 5 2 1 2 2 4 8 4 10 2 8 1 3 2 8 9 4 1 9 2 20 Storage 2 | . . 1 1 . . . . . . . . . . . . . . . . . . . . . Processor 6 | . . 1 . . . . 1 1 . . . . . . 1 . . . . 2 . . . . Hackware 4 | . . . . . . . . . . 2 . 1 . . . . 1 . . . . . . . Protection 5 | . . . . 2 3 . . . . . . . . . . . . . . . . . . . Artifact . | . . . . . . . . . . . . . . . . . . . . . . . . . Weapon 41 | 1 2 . . 4 2 15 . . 1 1 2 2 3 1 1 2 . 2 . . . . . 2 Energy Gun 12 | 1 . . . . 1 8 . . . . . . 1 . . . . . . . . . . 1 Energy Cannon 1 | . . . . . . 1 . . . . . . . . . . . . . . . . . . Ballistic Gun 7 | . 2 . . 1 . 4 . . . . . . . . . . . . . . . . . . Ballistic Cannon 2 | . . . . 2 . . . . . . . . . . . . . . . . . . . . Launcher 11 | . . . . 1 1 2 . . . . 1 1 2 . 1 1 . 1 . . . . . . Special Weapon . | . . . . . . . . . . . . . . . . . . . . . . . . . Impact Weapon . | . . . . . . . . . . . . . . . . . . . . . . . . . Slashing Weapon 6 | . . . . . . . . . 1 1 1 1 . 1 . 1 . . . . . . . . Piercing Weapon 2 | . . . . . . . . . . . . . . . . . . 1 . . . . . 1 Special Melee Weapon . | . . . . . . . . . . . . . . . . . . . . . . . . . Unidentified Prototypes 20 | . . . . . 1 10 . . . . 1 . . 2 . . . 1 . 1 . 2 . 2 Parts Lost 1 | . . . . . . . . . . . . . . . 1 . . . . . . . . . Power . | . . . . . . . . . . . . . . . . . . . . . . . . . Propulsion . | . . . . . . . . . . . . . . . . . . . . . . . . . Utility 1 | . . . . . . . . . . . . . . . 1 . . . . . . . . . Weapon . | . . . . . . . . . . . . . . . . . . . . . . . . . Highest Loss Streak 1 | . . . . . . . . . . . . . . . 1 . . . . . . . . . To Critical Strikes . | . . . . . . . . . . . . . . . . . . . . . . . . . Average Slot Usage (%) 70 | . 82 98 94 99 90 92 77 67 65 66 66 66 63 64 63 65 65 65 63 63 63 62 63 63 Engine 3 | . 17 14 12 10 6 12 11 7 . 5 . 1 . . . . . . . . . . . . Core 1 | . . . . . . . . 2 4 . 4 1 3 5 5 5 5 1 . . . . . . Reactor 1 | . . . . . . . . . . . . 1 1 . . . . 2 3 4 4 4 4 4 Leg 1 | . . . . . 10 . . 3 2 . 4 2 . . . 3 5 3 . . . . . . Hover 5 | . . 16 25 20 7 20 10 1 . 3 . 2 5 5 5 1 . . . 3 4 4 4 4 Device 28 | . . . . 20 30 32 34 29 26 25 24 26 26 29 30 33 30 32 31 31 31 30 31 31 Storage 5 | . . 13 17 14 7 6 6 5 5 5 5 5 5 5 5 5 5 4 4 4 4 4 4 4 Processor 5 | . . 7 12 4 . . 2 9 11 11 10 8 5 5 7 6 5 4 4 4 4 4 4 4 Hackware 2 | . . . . . . . . . . 1 5 5 5 5 1 . 4 4 4 4 4 4 4 4 Protection 1 | . . . . 9 12 6 . . . . . . . . . . . . . . . . . . Energy Cannon 3 | . . . . . . . . 3 . 5 5 5 5 5 5 5 5 4 2 3 4 4 4 4 Ballistic Gun 1 | . 23 30 25 13 . 5 3 . . . . . . . . . . . . . . . . . Slashing Weapon 1 | . . . . . . . . . 4 5 4 4 . 2 1 2 . . . . . . . . Piercing Weapon 1 | . . . . . . . . . . . . . . . . . . 1 4 4 4 4 4 4 Naked Turns . | . . . . . . . . . . . . . . . . . . . . . . . . . Heaviest Build 116 | 7 11 15 19 38 51 56 55 45 42 55 59 59 58 60 66 82 82 98 104 110 113 113 113 116 Greatest Support 136 | 20 20 24 24 24 52 52 46 64 75 100 136 136 112 112 112 112 92 92 136 135 135 135 135 120 Greatest Overweight (x) 2 | . . 1 . 1 2 2 2 1 1 1 1 . . . . . . 1 1 . . . . . Average Overweight (x) . | . . . . . . . . . . . . . . . . . . . . . . . . . Largest Inventory Capacity 6 | . 1 1 1 1 2 2 5 5 5 5 5 5 5 5 5 6 6 6 6 6 6 6 6 6 Average Capacity 4 | . . 1 1 1 1 2 4 5 5 5 5 5 5 5 5 5 6 6 6 6 6 6 6 6 Most Carried 6 | . 1 1 1 1 2 2 5 5 5 5 5 5 5 5 5 6 6 6 6 6 6 6 6 6 Average Carried 4 | . . 1 1 1 1 1 4 4 4 4 4 4 4 4 5 5 6 5 5 5 6 5 6 5 Final Capacity 6 | . 1 1 1 1 2 2 5 5 5 5 5 5 5 5 5 6 6 6 6 6 6 6 6 6 Final Carried 6 | . 1 1 1 1 2 2 5 5 5 5 5 5 4 5 5 6 6 6 6 6 6 6 6 6 Scrap Engine Consumption 357 | . . . . . . . 22 22 17 31 9 29 19 12 2 11 4 36 45 21 10 16 . 51 Constructs Created 3 | . . . . . . . 3 . . . . . . . . . . . . . . . . . Constructs Modified 116 | . . . . . . . 4 12 8 10 7 12 6 4 . 7 1 16 14 12 . 1 1 1 Class Distribution -------------------- 69% | Hacker-Construct 19% | Hacker-Mutant 7% | Mutant Dominant Class ---------------- Mutant | -10/Materials Mutant | -10/Mines Mutant | -10/Exiles Mutant | -9/Mines Scavenger-Mutant | -8/Materials Hacker-Mutant | -8/Storage Hacker-Mutant | -8/Recycling Hacker-Construct | -6/Factory Hacker-Mutant | -6/Garrison Hacker-Construct | -6/Factory Hacker-Construct | -6/Garrison Hacker-Construct | -5/Factory Hacker-Construct | -5/Garrison Hacker-Construct | -5/Factory Hacker-Construct | -5/Garrison Hacker-Construct | -4/Factory Hacker-Construct | -4/Garrison Hacker-Construct | -3/Research Hacker-Mutant | -3/Garrison Hacker-Construct | -3/Research Hacker-Construct | -3/Garrison Hacker-Construct | -2/Research Hacker-Construct | -2/Garrison Hacker-Construct | -1/Access Resources | -11 -10 -10 -10 -9 -8 -8 -8 -6 -6 -6 -6 -5 -5 -5 -5 -4 -4 -3 -3 -3 -3 -2 -2 -1 ----------- Run | Jun Mat Min Exi Min Mat Sto Rec Fac Gar Fac Gar Fac Gar Fac Gar Fac Gar Res Gar Res Gar Res Gar Acc Matter Collected 6095 | 200 . 160 . 132 206 251 90 151 500 288 62 152 64 100 79 46 64 100 461 355 353 399 742 1140 Remotely 10 | . . . . . . . 10 . . . . . . . . . . . . . . . . . Salvage Created 21816 | . . 79 . 100 570 900 279 250 520 1573 1535 534 1391 763 906 313 1185 1780 2457 1441 557 821 1493 2369 Parts 1163 | . . 4 . 9 30 49 17 22 45 62 57 37 72 31 62 21 68 105 97 62 39 47 77 150 Haulers Intercepted 1 | . . . . . 1 . . . . . . . . . . . . . . . . . . . Recyclers Shooed 3 | . . . . . 1 . . . . 1 . . . . . . . . . . . 1 . . Parts Field Recycled . | . . . . . . . . . . . . . . . . . . . . . . . . . Retrieved Matter . | . . . . . . . . . . . . . . . . . . . . . . . . . Parts Self-Destructed . | . . . . . . . . . . . . . . . . . . . . . . . . . Prevented . | . . . . . . . . . . . . . . . . . . . . . . . . . Kills | -11 -10 -10 -10 -9 -8 -8 -8 -6 -6 -6 -6 -5 -5 -5 -5 -4 -4 -3 -3 -3 -3 -2 -2 -1 ------- Run | Jun Mat Min Exi Min Mat Sto Rec Fac Gar Fac Gar Fac Gar Fac Gar Fac Gar Res Gar Res Gar Res Gar Acc Combat Hostiles Destroyed 352 | . . 2 . 4 12 18 4 9 13 20 21 12 26 8 22 8 23 21 28 15 14 10 28 34 Guns 24 | . . 2 . . 2 15 4 1 . . . . . . . . . . . . . . . . Cannons 278 | . . . . . 2 . . 8 13 20 13 7 17 8 14 7 19 21 28 15 14 10 28 34 AOE 36 | . . . . 4 8 3 . . . . 2 3 4 . 7 1 4 . . . . . . . Classes Destroyed 18 | . . 1 . 3 4 1 . 1 2 . 1 . 1 2 . . . . . . . . . 2 Worker 2 | . . . . . . . . . . . . . . 1 . . . 1 . . . . . . Tunneler 1 | . . . . 1 . . . . . . . . . . . . . . . . . . . . Hauler 1 | . . . . . 1 . . . . . . . . . . . . . . . . . . . Recycler 6 | . . . . 1 1 . 1 . . 2 . . . . . . . . . . . 1 . . Carrier 3 | . . . . . . . . . . . 1 . . 1 . . 1 . . . . . . . Operator 9 | . . . . . . 1 . . . . . . . . . . . 1 . 3 . . . 4 Drone 1 | . . . . . . . . . . . . . . . . . . . . . . . . 1 Watcher 33 | . . . . . 1 2 . . . 1 . 1 . 1 . . . 7 . 7 1 5 . 7 Swarmer 93 | . . . . 4 5 4 . 3 3 . 6 4 5 . 8 4 8 3 3 6 8 . 12 7 Grunt 108 | . . . . . 4 6 . 3 6 9 7 2 11 2 10 2 11 6 10 3 3 . 9 4 Brawler 7 | . . . . . . . . . . . . . . 1 1 . . . 3 . . . . 2 Duelist 2 | . . . . . . . . . . . . . 2 . . . . . . . . . . . Sentry 70 | . . . . . 3 8 4 1 . 5 6 1 6 4 1 1 1 5 7 3 2 6 1 5 Demolisher 2 | . . 2 . . . . . . . . . . . . . . . . . . . . . . Hunter 15 | . . . . . . . . . 2 2 . . 1 . . . . . 2 . . 2 . 6 Programmer 44 | . . . . . . . . 2 1 4 1 5 . 1 1 1 2 7 2 3 . 2 5 7 Heavy 2 | . . . . . . . . . . . . . . . . . . . . . . . . 2 Behemoth 8 | . . . . . . . . . 1 . 1 . 1 . 1 . 1 . 1 . 1 . 1 . Best Kill Streak 13 | . . 2 . 5 13 3 2 3 4 6 7 4 7 3 7 4 8 4 7 5 7 3 12 7 Combat Bots Only 12 | . . 2 . 4 10 3 1 3 4 4 6 4 7 2 7 4 8 4 7 4 7 2 12 7 Max Kills in Single Turn 5 | . . 1 . 3 5 3 1 1 1 1 2 2 3 1 3 1 1 1 1 2 1 1 1 1 Gunslinging . | . . . . . . . . . . . . . . . . . . . . . . . . . Exploded 4 | . . . . 2 4 3 . . . . 2 2 3 . 3 1 1 . . . . . . . Melee . | . . . . . . . . . . . . . . . . . . . . . . . . . Uniques/NPCs Destroyed . | . . . . . . . . . . . . . . . . . . . . . . . . . Combat | -11 -10 -10 -10 -9 -8 -8 -8 -6 -6 -6 -6 -5 -5 -5 -5 -4 -4 -3 -3 -3 -3 -2 -2 -1 -------- Run | Jun Mat Min Exi Min Mat Sto Rec Fac Gar Fac Gar Fac Gar Fac Gar Fac Gar Res Gar Res Gar Res Gar Acc Damage Taken 9518 | . . 429 . 47 286 356 48 649 1160 594 660 206 248 295 627 142 419 298 1043 240 340 198 290 943 Core 7413 | . . 342 . 31 166 227 32 496 905 466 513 160 188 229 504 107 329 232 860 193 268 160 226 779 Absorbed by Shields 108 | . . . . . . . . . . . . . 4 14 . . . 40 34 . . . 16 . Redirected to Core 6477 | . . 276 . 31 154 202 32 473 865 402 459 160 174 209 429 107 289 221 633 173 250 142 210 586 Regen/Repaired (Parts) 461 | . . . . . . . 3 78 165 76 30 28 6 23 2 3 3 9 24 11 . . . . Core Remaining (%) 99 | 100 . . . 100 . . 96 . . . 96 . . . 100 . 100 . . . 100 . 100 100 Volleys Fired 1150 | . . 10 . 6 21 55 10 48 68 54 78 30 62 36 46 22 41 60 127 54 49 60 76 137 Largest 2 | . . 2 . 2 2 2 2 1 1 1 1 1 1 1 1 1 1 1 1 1 1 1 1 1 Hottest 144 | . . 46 . 71 123 100 100 40 40 139 139 139 89 89 89 89 105 126 144 133 133 133 133 133 Shots Fired 1218 | . . 20 . 10 33 96 13 48 67 54 78 29 62 36 46 22 41 60 127 54 49 60 76 137 Gun 177 | . . 20 . 6 13 95 13 30 . . . . . . . . . . . . . . . . Cannon 1012 | . . . . 2 16 . . 18 67 54 76 27 58 36 37 21 37 60 127 54 49 60 76 137 Launcher 29 | . . . . 2 4 1 . . . . 2 2 4 . 9 1 4 . . . . . . . Special . | . . . . . . . . . . . . . . . . . . . . . . . . . Kinetic 200 | . . 20 . 8 16 41 3 13 67 . . . 11 9 . . . . 2 10 . . . . Thermal 959 | . . . . . 13 54 10 5 . 54 76 27 47 27 37 21 37 60 125 44 49 60 76 137 Explosive 2 | . . . . 2 . . . . . . . . . . . . . . . . . . . . Electromagnetic 57 | . . . . . 4 1 . 30 . . 2 2 4 . 9 1 4 . . . . . . . Robot Hit Streak 61 | . . 12 . 11 16 19 12 13 32 23 38 10 13 19 51 10 21 17 42 24 61 23 18 32 Robot Miss Streak 3 | . . 2 . . 1 1 . 2 1 1 2 1 1 1 1 1 1 2 1 2 1 1 1 3 Penetration Max . | . . . . . . . . . . . . . . . . . . . . . . . . . Secondary Targets 1 | . . 1 . . . . . . . . . . . . . . . . . . . . . . Max Gunslinging Chain 1 | . . 1 . . . . . . . . . . . . . . . . . . . . . . Capacitor 726 | . . . . . . . . . . . . 13 58 36 37 21 37 60 89 53 49 60 76 137 Shots Hit Robots 985 | . . 16 . 9 25 65 11 42 60 42 71 20 45 32 37 18 34 47 119 49 46 42 63 92 Core Hits 460 | . . 8 . 7 17 31 5 15 23 21 29 9 29 12 30 6 25 19 50 24 18 15 24 43 Critical Kills 15 | . . . . . . 1 . . . . 6 2 5 . . . . . . . . . . 1 Critical Parts Destroyed 1 | . . . . . . . . . . . . . . . . . . . . 1 . . . . Critical Strikes 39 | . . . . . 1 5 2 . . 8 6 2 5 . . 2 . 1 5 1 . . . 1 Burn 23 | . . . . . 1 4 2 . . 8 . . . . . 2 . 1 5 . . . . . Meltdown 13 | . . . . . . . . . . . 6 2 5 . . . . . . . . . . . Destroy 3 | . . . . . . 1 . . . . . . . . . . . . . 1 . . . 1 Melee Attacks 2 | . . . . . . . . . . 1 1 . . . . . . . . . . . . . Impact . | . . . . . . . . . . . . . . . . . . . . . . . . . Slashing 2 | . . . . . . . . . . 1 1 . . . . . . . . . . . . . Piercing . | . . . . . . . . . . . . . . . . . . . . . . . . . Sneak Attacks . | . . . . . . . . . . . . . . . . . . . . . . . . . Combat Hostiles . | . . . . . . . . . . . . . . . . . . . . . . . . . Follow-up Attacks . | . . . . . . . . . . . . . . . . . . . . . . . . . Damage Inflicted 75528 | . . 255 . 443 937 1533 259 1039 2750 2938 5750 2059 3908 2723 3412 1707 3562 5721 10508 3803 3388 3687 6151 8995 Guns 2533 | . . 255 . 96 273 1461 259 189 . . . . . . . . . . . . . . . . Cannons 70607 | . . . . 60 275 . . 850 2750 2938 5591 1904 3590 2700 2734 1639 3323 5721 10508 3803 3388 3687 6151 8995 Explosions 2349 | . . . . 287 389 72 . . . . 159 116 318 23 678 68 239 . . . . . . . Melee . | . . . . . . . . . . . . . . . . . . . . . . . . . Ramming 39 | . . . . . . . . . . . . 39 . . . . . . . . . . . . Kinetic 6363 | . . 255 . 156 275 553 20 552 2750 . . . 324 769 . . . . 102 607 . . . . Thermal 66854 | . . . . . 383 908 239 298 . 2938 5591 1904 3362 1931 2794 1639 3323 5721 10406 3196 3388 3687 6151 8995 Explosive 287 | . . . . 287 . . . . . . . . . . . . . . . . . . . . Electromagnetic 1985 | . . . . . 279 72 . 189 . . 159 116 222 23 618 68 239 . . . . . . . Impact . | . . . . . . . . . . . . . . . . . . . . . . . . . Slashing . | . . . . . . . . . . . . . . . . . . . . . . . . . Piercing . | . . . . . . . . . . . . . . . . . . . . . . . . . Highest Corruption 5 | . . . . . . . . 3 4 5 . 1 . 1 . . . . . . . 1 . 1 Average Corruption 3 | . . . . . . . . 2 3 3 . 1 . 1 . . . . . . . 1 . 1 Corruption Purged 10 | . . . . . . . . . . 6 . 1 . 1 . . . . . . . 1 . 1 Corruption Blocked . | . . . . . . . . . . . . . . . . . . . . . . . . . Effects 73 | . . . . . . . . 24 16 32 . 1 . . . . . . . . . . . . Message Errors 16 | . . . . . . . . 4 3 9 . . . . . . . . . . . . . . Matter Fused 22 | . . . . . . . . 10 4 8 . . . . . . . . . . . . . . Heat Flow Errors 9 | . . . . . . . . 3 4 2 . . . . . . . . . . . . . . Energy Discharges 7 | . . . . . . . . 1 2 4 . . . . . . . . . . . . . . Parts Fused 3 | . . . . . . . . 1 1 1 . . . . . . . . . . . . . . Data Loss (minor) 8 | . . . . . . . . 3 1 4 . . . . . . . . . . . . . . Data Loss (major) 5 | . . . . . . . . 2 . 3 . . . . . . . . . . . . . . Alerts 1 | . . . . . . . . . . 1 . . . . . . . . . . . . . . Weapon Failures 2 | . . . . . . . . . 1 . . 1 . . . . . . . . . . . . Overload Shots . | . . . . . . . . . . . . . . . . . . . . . . . . . Overflow Damage 8509 | . . . . 8 4 . . 146 90 233 518 514 51 297 394 431 348 1645 572 444 129 465 1247 973 Projectiles 8463 | . . . . . . . . 146 90 233 518 514 51 297 364 431 344 1645 572 444 129 465 1247 973 Explosions 46 | . . . . 8 4 . . . . . . . . . 30 . 4 . . . . . . . Melee . | . . . . . . . . . . . . . . . . . . . . . . . . . Knockbacks 16 | . . . . 1 . . . 4 10 . . . . . . . . . . 1 . . . . Impact . | . . . . . . . . . . . . . . . . . . . . . . . . . Kinetic 16 | . . . . 1 . . . 4 10 . . . . . . . . . . 1 . . . . Secondary . | . . . . . . . . . . . . . . . . . . . . . . . . . Self-Inflicted Damage 52 | . . . . . 12 . . . . . . 19 . 21 . . . . . . . . . . Shots 2 | . . . . . 1 . . . . . . . . 1 . . . . . . . . . . Rammed 1 | . . . . . . . . . . . . 1 . . . . . . . . . . . . Targets Rammed 1 | . . . . . . . . . . . . 1 . . . . . . . . . . . . Kicked . | . . . . . . . . . . . . . . . . . . . . . . . . . Crushed . | . . . . . . . . . . . . . . . . . . . . . . . . . Highest Temperature 417 | . . . . 50 306 150 69 228 205 240 366 390 109 131 109 30 128 275 417 145 173 226 224 150 Average Temperature 66 | . . . . 20 157 46 32 77 86 87 111 103 42 51 22 13 35 59 70 78 69 48 70 9 Received Heat Transfer 2155 | . . . . 27 135 198 9 162 291 216 261 27 24 78 129 9 84 54 232 . 66 18 117 18 Siege Activations . | . . . . . . . . . . . . . . . . . . . . . . . . . Robots Corrupted 1 | . . . . . . . . . . . . . . . 1 . . . . . . . . . Combat Hostiles 1 | . . . . . . . . . . . . . . . 1 . . . . . . . . . Parts Fried 4 | . . . . . . . . 1 . . . . 1 . . . 1 . . . . . . 1 Impact Corruptions . | . . . . . . . . . . . . . . . . . . . . . . . . . Robots Melted 14 | . . . . . . . . . . . 7 2 5 . . . . . . . . . . . Combat Hostiles 13 | . . . . . . . . . . . 6 2 5 . . . . . . . . . . . Parts Melted 63 | . . . . . . 5 2 . . 8 10 7 5 1 1 1 2 5 5 . . 1 4 6 Heat Transferred 28912 | . . . . . 568 1702 518 185 . 2872 3400 550 1515 831 1335 814 1127 1850 4874 148 . 851 2331 3441 Parts Sabotaged . | . . . . . . . . . . . . . . . . . . . . . . . . . Parts Stolen . | . . . . . . . . . . . . . . . . . . . . . . . . . Parts Stripped . | . . . . . . . . . . . . . . . . . . . . . . . . . Power Chain Reactions 6 | . . . . . 2 1 . . . . . . 2 . 1 . . . . . . . . . Missiles Intercepted . | . . . . . . . . . . . . . . . . . . . . . . . . . Alert | -11 -10 -10 -10 -9 -8 -8 -8 -6 -6 -6 -6 -5 -5 -5 -5 -4 -4 -3 -3 -3 -3 -2 -2 -1 ------- Run | Jun Mat Min Exi Min Mat Sto Rec Fac Gar Fac Gar Fac Gar Fac Gar Fac Gar Res Gar Res Gar Res Gar Acc Peak Influence 1037 | . 8 52 . 133 297 260 69 176 363 231 609 364 906 685 1037 551 738 405 798 620 460 309 974 804 Initial 510 | . . 2 . . . 55 26 50 9 165 25 276 146 412 370 471 61 361 . 390 133 225 73 510 Average 276 | . 3 25 . 25 158 118 32 45 180 114 414 206 674 562 776 303 488 124 492 338 326 100 669 507 Maximum Alert Level 3 | . . . . . 1 1 . . 1 1 2 1 3 2 3 2 3 2 3 2 2 1 3 3 Low Security (%) 51 | 100 100 100 . 100 69 79 100 100 62 82 20 55 1 . . 29 10 83 15 27 27 87 10 . Level 1 18 | . . . . . 30 20 . . 37 17 6 44 13 . 4 31 21 15 11 34 35 12 12 27 Level 2 22 | . . . . . . . . . . . 73 . 17 100 28 39 60 . 52 38 36 . 7 64 Level 3 7 | . . . . . . . . . . . . . 66 . 66 . 6 . 19 . . . 68 7 Level 4 . | . . . . . . . . . . . . . . . . . . . . . . . . . Level 5 . | . . . . . . . . . . . . . . . . . . . . . . . . . High Security . | . . . . . . . . . . . . . . . . . . . . . . . . . Max Security . | . . . . . . . . . . . . . . . . . . . . . . . . . Squads Dispatched 38 | . 1 . . 1 1 1 . 3 . 6 . 4 . 2 . 3 . 5 . 2 . 2 . 7 Investigation 10 | . 1 . . 1 . 1 . 1 . 2 . 1 . . . . . 1 . . . 1 . 1 Extermination 18 | . . . . . . . . 1 . 3 . 3 . 1 . 2 . 3 . 1 . 1 . 3 Reinforcement 9 | . . . . . 1 . . 1 . 1 . . . . . 1 . 1 . 1 . . . 3 Assault 1 | . . . . . . . . . . . . . . 1 . . . . . . . . . . Garrison . | . . . . . . . . . . . . . . . . . . . . . . . . . Intercept . | . . . . . . . . . . . . . . . . . . . . . . . . . Searches Triggered . | . . . . . . . . . . . . . . . . . . . . . . . . . Construction Impeded 1 | . . . . . 1 . . . . . . . . . . . . . . . . . . . Haulers Reinforced 1 | . . . . . . . . . . . . . . . . . . . . . . . . 1 Active Scanning Responses . | . . . . . . . . . . . . . . . . . . . . . . . . . Cargo Convoy Interrupts . | . . . . . . . . . . . . . . . . . . . . . . . . . Stealth | -11 -10 -10 -10 -9 -8 -8 -8 -6 -6 -6 -6 -5 -5 -5 -5 -4 -4 -3 -3 -3 -3 -2 -2 -1 --------- Run | Jun Mat Min Exi Min Mat Sto Rec Fac Gar Fac Gar Fac Gar Fac Gar Fac Gar Res Gar Res Gar Res Gar Acc Distress Signals 5 | . . . . . 1 2 . . . 1 . . . . . . . . . 1 . . . . Communications Jammed 46 | . . . . . . . . . . . . . . 9 . 2 . 5 . . . 1 . 29 Distress Signals 40 | . . . . . . . . . . . . . . 8 . 2 . 4 . . . . . 26 Times Spotted 420 | . . 2 . 3 15 21 3 13 14 23 22 13 29 14 24 13 20 31 27 27 14 14 29 49 Peak Tracking Total 8 | . . 2 . 1 6 4 1 3 4 4 6 4 8 4 6 3 4 2 4 4 2 2 4 4 Tactical Retreats 22 | . . . . . . 1 . . 2 1 1 1 . 2 4 1 . 1 . 1 . 1 1 5 Traps | -11 -10 -10 -10 -9 -8 -8 -8 -6 -6 -6 -6 -5 -5 -5 -5 -4 -4 -3 -3 -3 -3 -2 -2 -1 ------- Run | Jun Mat Min Exi Min Mat Sto Rec Fac Gar Fac Gar Fac Gar Fac Gar Fac Gar Res Gar Res Gar Res Gar Acc Traps Triggered 44 | . 1 . . . 1 3 . . . . 1 1 7 . 9 . 2 . 6 2 5 1 4 1 Indirectly 5 | . . . . . . . . . . . . . . . 5 . . . . . . . . . Trap Hack Attempts . | . . . . . . . . . . . . . . . . . . . . . . . . . Triggered . | . . . . . . . . . . . . . . . . . . . . . . . . . Disarmed . | . . . . . . . . . . . . . . . . . . . . . . . . . Reprogrammed . | . . . . . . . . . . . . . . . . . . . . . . . . . Reused . | . . . . . . . . . . . . . . . . . . . . . . . . . Traps Extracted . | . . . . . . . . . . . . . . . . . . . . . . . . . Installed . | . . . . . . . . . . . . . . . . . . . . . . . . . Triggered 1 | . . . . . . . . . . . . . . . 1 . . . . . . . . . Machines | -11 -10 -10 -10 -9 -8 -8 -8 -6 -6 -6 -6 -5 -5 -5 -5 -4 -4 -3 -3 -3 -3 -2 -2 -1 ---------- Run | Jun Mat Min Exi Min Mat Sto Rec Fac Gar Fac Gar Fac Gar Fac Gar Fac Gar Res Gar Res Gar Res Gar Acc Machines Disabled 18 | . . . . . 1 5 . . 1 . 2 . . 2 . . 2 1 . 1 . . 2 1 Max in Single Turn 2 | . . . . . 1 1 . . 1 . 1 . . 2 . . 1 1 . 1 . . 1 1 Garrison Access 5 | . . . . . . . . . . . . . . . . . . . . 1 . . . 4 Garrison Relay 1 | . . . . . . . . . . . . . . . . . 1 . . . . . . . Machines Repaired . | . . . . . . . . . . . . . . . . . . . . . . . . . Machines Sabotaged . | . . . . . . . . . . . . . . . . . . . . . . . . . Overloaded Fab Kills . | . . . . . . . . . . . . . . . . . . . . . . . . . Hacking | -11 -10 -10 -10 -9 -8 -8 -8 -6 -6 -6 -6 -5 -5 -5 -5 -4 -4 -3 -3 -3 -3 -2 -2 -1 --------- Run | Jun Mat Min Exi Min Mat Sto Rec Fac Gar Fac Gar Fac Gar Fac Gar Fac Gar Res Gar Res Gar Res Gar Acc Machines Accessed 143 | . 1 . 1 1 5 8 11 9 1 12 4 7 3 8 . 10 1 14 2 12 . 11 2 20 Terminals 74 | . 1 . . . 4 6 4 5 1 4 4 2 3 3 . 4 1 9 2 4 . 5 2 10 Fabricators 15 | . . . . . . . . 2 . 3 . 2 . . . 2 . 1 . 1 . 2 . 2 Repair Stations 7 | . . . . . . . . 1 . 1 . . . 2 . . . . . 1 . 1 . 1 Recycling Units 22 | . . . . . 1 1 7 . . 1 . 2 . 2 . 2 . 2 . 1 . 1 . 2 Scanalyzers 4 | . . . . . . . . . . 1 . . . . . . . . . 2 . . . 1 Garrison Access 19 | . . . . . . 1 . 1 . 2 . 1 . 1 . 2 . 2 . 3 . 2 . 4 Total Hacks 431 | . 3 . 1 1 15 17 28 32 2 45 8 23 10 25 . 27 2 59 5 46 . 34 7 41 Successful 253 | . 2 . 1 1 6 4 21 16 . 34 5 18 4 18 . 17 1 37 2 26 . 19 3 18 Failed 177 | . 1 . . . 9 13 7 16 2 10 3 5 6 7 . 10 1 22 3 20 . 15 4 23 Catastrophic 26 | . 1 . . . 1 . 1 2 . 2 3 . 1 . . 1 . 3 1 5 . 1 1 3 Database Lockouts 1 | . . . . . . . . . . 1 . . . . . . . . . . . . . . Manual 184 | . 2 . 1 . 9 5 14 20 . 24 4 10 5 14 . 13 . 17 3 12 . 17 3 11 Terminals 249 | . 3 . . . 12 13 9 19 2 24 8 8 10 10 . 12 2 45 5 18 . 20 7 22 Fabricators 38 | . . . . . . . . 4 . 7 . 5 . . . 5 . 3 . 4 . 5 . 5 Repair Stations 15 | . . . . . . . . 3 . 3 . . . 3 . . . . . 3 . 1 . 2 Recycling Units 64 | . . . . . 3 2 19 . . 5 . 7 . 6 . 5 . 6 . 2 . 4 . 5 Scanalyzers 20 | . . . . . . . . . . 3 . . . . . . . . . 14 . . . 3 Garrison Access 43 | . . . . . . 2 . 6 . 3 . 3 . 6 . 5 . 5 . 5 . 4 . 4 Terminal Hacks 98 | . 1 . 1 1 4 3 5 6 . 12 4 5 3 3 . 3 1 20 2 8 . 9 2 5 Record 5 | . . . . . . . . . . . . . . . . . . 1 . 1 . 1 . 2 Part Schematic 7 | . . . . . . . 1 . . 2 . . . 2 . . . 1 . . . 1 . . Robot Analysis 7 | . . . . . . . 1 . . 2 . . . . . . . 2 . 1 . 1 . . Prototype ID Bank 7 | . . . . . 1 . 2 . . . . 1 . . . . . 1 . . . 2 . . Open Door 8 | . . . . 1 . 2 . . . . 1 . 1 . . . 1 . 1 . . . . 1 Level Access Points 2 | . . . . . . . . . . . . . . . . . . 1 . 1 . . . . Branch Access Points 6 | . . . . . 1 . . 1 . 2 . . . . . . . 1 . 1 . . . . Emergency Access Points 6 | . . . . . . . . . . . 1 . 1 . . . . 2 1 . . . 1 . Machine Index 1 | . . . . . . . . . . . . . . . . . . 1 . . . . . . Terminal Index 6 | . 1 . . . . . . . . 1 . 1 . 1 . 1 . 1 . . . . . . Scanalyzer Index 1 | . . . . . . . . . . 1 . . . . . . . . . . . . . . Garrison Index 3 | . . . . . . . . . . . . 1 . . . . . 2 . . . . . . Alert Level 5 | . . . . . 1 1 1 1 . 1 . . . . . . . . . . . . . . Unreport Threat 15 | . . . . . . . . . . . . . . . . 2 . 4 . 3 . 4 . 2 Locate Traps 6 | . . . . . . . . 3 . 1 . . . . . . . 1 . 1 . . . . Registered Components 4 | . . . . . 1 . . . . 1 . 1 . . . . . 1 . . . . . . Registered Prototypes 2 | . . . . . . . . . . 1 . 1 . . . . . . . . . . . . Zone Layout 2 | . . . . . . . . 1 . . . . . . . . . 1 . . . . . . Garrison Registry 1 | . . . . . . . . . . . 1 . . . . . . . . . . . . . Patrol Navigation 1 | . . . . . . . . . . . 1 . . . . . . . . . . . . . Security Stations 2 | . . . . . . . . . . . . . 1 . . . . . . . . . 1 . EX-Prototype ID Bank 1 | . . . 1 . . . . . . . . . . . . . . . . . . . . . Fabricator Hacks 14 | . . . . . . . . . . 5 . 2 . . . 3 . 1 . . . 2 . 1 Network Status 4 | . . . . . . . . . . 1 . 1 . . . . . 1 . . . . . 1 Load Schematic 5 | . . . . . . . . . . 2 . . . . . 2 . . . . . 1 . . Build 5 | . . . . . . . . . . 2 . 1 . . . 1 . . . . . 1 . . Repair Station Hacks 11 | . . . . . . . . 2 . 2 . . . 2 . . . . . 2 . 1 . 2 Scan Component 6 | . . . . . . . . 1 . 1 . . . 1 . . . . . 1 . 1 . 1 Repair 5 | . . . . . . . . 1 . 1 . . . 1 . . . . . 1 . . . 1 Recycling Unit Hacks 24 | . . . . . 1 . 6 . . 2 . 3 . 3 . 3 . 3 . 1 . 1 . 1 Report Inventory 11 | . . . . . . . . . . 1 . 1 . 2 . 2 . 2 . 1 . 1 . 1 Retrieve Components 13 | . . . . . 1 . 6 . . 1 . 2 . 1 . 1 . 1 . . . . . . Scanalyzer 12 | . . . . . . . . . . 3 . . . . . . . . . 8 . . . 1 Insert Component 8 | . . . . . . . . . . 2 . . . . . . . . . 5 . . . 1 Analyze 4 | . . . . . . . . . . 1 . . . . . . . . . 3 . . . . Garrison Access Hacks 22 | . . . . . . . . 1 . 2 . 1 . 2 . 2 . 4 . 4 . 2 . 4 Unlock Access 13 | . . . . . . . . 1 . 2 . 1 . 1 . 2 . 2 . 2 . 2 . . Seal Access 5 | . . . . . . . . . . . . . . . . . . . . 1 . . . 4 Coupler Status 4 | . . . . . . . . . . . . . . 1 . . . 2 . 1 . . . . Unauthorized Hacks 72 | . 1 . . . 1 1 10 7 . 8 1 7 1 8 . 6 . 9 . 3 . 4 1 4 Terminals 32 | . 1 . . . 1 1 1 2 . 3 1 2 1 2 . 4 . 5 . 2 . 2 1 3 Track 8 | . . . . . . . . . . . . 1 . . . 2 . 3 . 1 . . . 1 Assimilate 7 | . . . . . . . . 1 . 1 . 1 . . . 1 . 1 . . . 1 . 1 Botnet 14 | . 1 . . . 1 1 1 1 . 1 1 . 1 1 . . . 1 . 1 . 1 1 1 Disrupt 1 | . . . . . . . . . . . . . . . . 1 . . . . . . . . Operators 2 | . . . . . . . . . . 1 . . . 1 . . . . . . . . . . Fabricators 10 | . . . . . . . . 2 . 2 . 3 . . . 1 . 1 . 1 . . . . Report 5 | . . . . . . . . 1 . 1 . 1 . . . . . 1 . 1 . . . . Prioritize 3 | . . . . . . . . . . 1 . 1 . . . 1 . . . . . . . . Fabnet 2 | . . . . . . . . 1 . . . 1 . . . . . . . . . . . . Repair Stations 2 | . . . . . . . . 1 . . . . . 1 . . . . . . . . . . Mechanics 2 | . . . . . . . . 1 . . . . . 1 . . . . . . . . . . Recycling Units 23 | . . . . . . . 9 . . 3 . 2 . 3 . 1 . 2 . . . 2 . 1 Monitor 3 | . . . . . . . 2 . . 1 . . . . . . . . . . . . . . Reject 12 | . . . . . . . 7 . . 1 . 1 . 1 . . . 1 . . . 1 . . Recyclers 7 | . . . . . . . . . . 1 . 1 . 1 . 1 . 1 . . . 1 . 1 Mask 1 | . . . . . . . . . . . . . . 1 . . . . . . . . . . Scanalyzers . | . . . . . . . . . . . . . . . . . . . . . . . . . Garrison Access 5 | . . . . . . . . 2 . . . . . 2 . . . 1 . . . . . . Broadcast 2 | . . . . . . . . 1 . . . . . 1 . . . . . . . . . . Watchers 3 | . . . . . . . . 1 . . . . . 1 . . . 1 . . . . . . Data Cores Recovered 7 | . . . . . . 1 . . . . . . . . . . . 1 . 2 . . . 3 Used 2 | . . . . . . . . . . . . . . . . . . 1 . 1 . . . . Hacking Detections 110 | . 1 . . . 5 7 5 7 1 9 3 7 2 4 . 8 . 12 1 11 . 9 2 16 Full Trace Events 10 | . . . . . . 1 1 1 . 2 . 1 . . . . . 1 . . . 1 1 1 Feedback Events 1 | . . . . . . . . . . . . 1 . . . . . . . . . . . . Corruption 1 | . . . . . . . . . . . . 1 . . . . . . . . . . . . Feedback Blocked . | . . . . . . . . . . . . . . . . . . . . . . . . . Robot Schematics Acquired . | . . . . . . . . . . . . . . . . . . . . . . . . . Robots Built . | . . . . . . . . . . . . . . . . . . . . . . . . . Authchips . | . . . . . . . . . . . . . . . . . . . . . . . . . Time . | . . . . . . . . . . . . . . . . . . . . . . . . . Total Robot Build Rating . | . . . . . . . . . . . . . . . . . . . . . . . . . Part Schematics Acquired 11 | . . . . . . . 1 . . 3 . . . 2 . . . 1 . 3 . 1 . . Parts Built 9 | . . . . . . . . . . 4 . 2 . . . 1 . . . . . 2 . . Authchips . | . . . . . . . . . . . . . . . . . . . . . . . . . Time 194 | . . . . . . . . . . 52 . 34 . . . 69 . . . . . 39 . . Total Part Build Rating 59 | . . . . . . . . . . 18 . 18 . . . 9 . . . . . 14 . . Parts Repaired 5 | . . . . . . . . 1 . 1 . . . 1 . . . . . 1 . . . 1 Time 154 | . . . . . . . . 53 . 14 . . . 38 . . . . . 23 . . . 26 Parts Recycled . | . . . . . . . . . . . . . . . . . . . . . . . . . Recycled Matter . | . . . . . . . . . . . . . . . . . . . . . . . . . Retrieved Matter . | . . . . . . . . . . . . . . . . . . . . . . . . . Retrieved Components 33 | . . . . . 10 . 7 . . 3 . 6 . 3 . 3 . 1 . . . . . . Parts Scanalyzed 6 | . . . . . . . . . . 1 . . . . . . . . . 4 . . . 1 Part Schematics Acquired 4 | . . . . . . . . . . 1 . . . . . . . . . 3 . . . . Parts Damaged . | . . . . . . . . . . . . . . . . . . . . . . . . . Bothacking | -11 -10 -10 -10 -9 -8 -8 -8 -6 -6 -6 -6 -5 -5 -5 -5 -4 -4 -3 -3 -3 -3 -2 -2 -1 ------------ Run | Jun Mat Min Exi Min Mat Sto Rec Fac Gar Fac Gar Fac Gar Fac Gar Fac Gar Res Gar Res Gar Res Gar Acc Used RIF Installer 8 | . . . . . . . . . 1 . 1 . 1 . . . 1 . 1 . 2 . 1 . Hotswap 1 | . . . . . . . . . . . 1 . . . . . . . . . . . . . Code Merge 1 | . . . . . . . . . . . . . . . . . . . . . . . 1 . Zone Cloak 1 | . . . . . . . . . . . . . . . . . 1 . . . . . . . Robot Detection 1 | . . . . . . . . . . . . . . . . . . . . . 1 . . . Program Shield 1 | . . . . . . . . . . . . . . . . . . . . . 1 . . . Autooverride 1 | . . . . . . . . . . . . . 1 . . . . . . . . . . . Autoassimilate 1 | . . . . . . . . . . . . . . . . . . . 1 . . . . . Robots Hacked 6 | . . . . . . . . . . . . . . 1 1 . . . 1 . 2 . 1 . Non-combat . | . . . . . . . . . . . . . . . . . . . . . . . . . Combat 6 | . . . . . . . . . . . . . . 1 1 . . . 1 . 2 . 1 . Autooverrided 1 | . . . . . . . . . . . . . . . . . . . . . . . 1 . Autoassimilated 2 | . . . . . . . . . . . . . . . . . . . . . 2 . . . Robot Hacks Applied . | . . . . . . . . . . . . . . . . . . . . . . . . . Relay Couplers Released 4 | . . . . . . . . . . 1 . . . . 1 . 2 . . . . . . . Machine Destruction 2 | . . . . . . . . . . . . . . . . . 2 . . . . . . . Programmers 2 | . . . . . . . . . . 1 . . . . 1 . . . . . . . . . Attached 2 | . . . . . . . . . . 1 . . . . . . 1 . . . . . . . Fabnet Peak Effective % 4 | . . . . . . . . . . . . 3 3 3 3 4 4 1 1 1 1 . . . Autooverrided 3 | . . . . . . . . . . . . . . 1 1 . . . 1 . . . . . Robots Rewired 8 | . . . . . . . . . . . 2 . 3 . . . 3 . . . . . . . Allies Hacked . | . . . . . . . . . . . . . . . . . . . . . . . . . Hacks Repelled . | . . . . . . . . . . . . . . . . . . . . . . . . . Allies | -11 -10 -10 -10 -9 -8 -8 -8 -6 -6 -6 -6 -5 -5 -5 -5 -4 -4 -3 -3 -3 -3 -2 -2 -1 -------- Run | Jun Mat Min Exi Min Mat Sto Rec Fac Gar Fac Gar Fac Gar Fac Gar Fac Gar Res Gar Res Gar Res Gar Acc Total Allies 28 | . . . . 2 . . . 1 . 1 2 . 5 1 1 1 3 1 3 . 2 1 3 1 Largest Group 4 | . . . . 2 2 . . 1 . 1 2 2 4 2 1 1 2 2 2 . 1 1 2 2 Highest-Rated Group 158 | . . . . 45 45 . . 23 . 10 67 67 158 78 29 26 148 75 93 . 30 45 124 124 Highest-Rated Ally 148 | . . . . 31 31 . . 23 . 10 38 38 43 49 29 26 148 46 64 . 30 45 62 62 Total Orders . | . . . . . . . . . . . . . . . . . . . . . . . . . Ally Attacks 101 | . . . . . 13 . . . . . . . 18 . 6 . 19 11 13 . . . 16 5 Total Damage 2538 | . . . . . 147 . . . . . . . 581 . 57 . 545 314 417 . . . 399 78 Kills 13 | . . . . . 1 . . . . . . . 7 . . . 1 2 . . . . 2 . Allies Corrupted 2 | . . . . . . . . . . . . . . . . . . . 1 . . . . 1 Allies Melted . | . . . . . . . . . . . . . . . . . . . . . . . . . Intel | -11 -10 -10 -10 -9 -8 -8 -8 -6 -6 -6 -6 -5 -5 -5 -5 -4 -4 -3 -3 -3 -3 -2 -2 -1 ------- Run | Jun Mat Min Exi Min Mat Sto Rec Fac Gar Fac Gar Fac Gar Fac Gar Fac Gar Res Gar Res Gar Res Gar Acc Robot Analysis Total 7 | . . . . . . . 1 . . 2 . . . . . . . 2 . 1 . 1 . . Derelict Logs Recovered 2 | . . 1 . 1 . . . . . . . . . . . . . . . . . . . . Drone Launches . | . . . . . . . . . . . . . . . . . . . . . . . . . Drone Recoveries . | . . . . . . . . . . . . . . . . . . . . . . . . . Exploration | -11 -10 -10 -10 -9 -8 -8 -8 -6 -6 -6 -6 -5 -5 -5 -5 -4 -4 -3 -3 -3 -3 -2 -2 -1 ------------- Run | Jun Mat Min Exi Min Mat Sto Rec Fac Gar Fac Gar Fac Gar Fac Gar Fac Gar Res Gar Res Gar Res Gar Acc Turns Passed 22908 | 11 75 460 168 893 778 1273 1187 1225 916 2028 838 1073 637 591 565 1023 980 2134 872 897 341 667 529 2747 Spaces Moved 18912 | 5 88 519 216 676 448 712 759 945 336 1309 494 852 649 664 555 904 644 1253 767 1115 463 888 713 2938 Core . | . . . . . . . . . . . . . . . . . . . . . . . . . Treads 1633 | . . . . . . . 89 . 199 435 . . . . . . . 164 721 25 . . . . Legs 4379 | 2 . . . . 251 23 . 709 137 . 454 495 . . . 591 644 1073 . . . . . . Wheels 306 | 3 88 199 . . . . . . . . . . . . . . . 16 . . . . . . Hover 12594 | . . 320 216 676 197 689 670 236 . 874 40 357 649 664 555 313 . . 46 1090 463 888 713 2938 Flight . | . . . . . . . . . . . . . . . . . . . . . . . . . Fastest Speed 51 | 80 80 77 77 77 130 107 102 92 135 114 100 66 66 66 66 66 134 134 53 51 51 51 51 51 Average Speed 89 | 96 80 78 77 123 140 114 145 101 187 123 117 85 66 66 66 83 134 152 69 55 51 51 51 51 Slowest Speed 290 | 120 80 155 77 147 280 201 290 238 248 189 189 100 66 66 66 134 134 202 158 126 51 51 51 51 Overloaded Moves . | . . . . . . . . . . . . . . . . . . . . . . . . . Propulsion Burnouts . | . . . . . . . . . . . . . . . . . . . . . . . . . Robots Hopped . | . . . . . . . . . . . . . . . . . . . . . . . . . Cave-ins Triggered 1 | . . . . . . . . . . . . . . . 1 . . . . . . . . . Exploration Rate (%) 49 | 2 21 96 60 95 35 87 98 16 29 31 65 21 75 16 62 22 70 33 68 29 52 25 76 60 Regions Visited 24 Branch Regions 5 Pre-discovered Areas 2 | . . . . 1 . 1 . . . . . . . . . . . . . . . . . . Known Exits Taken 9 | . . . . . 1 . . 1 . 1 . 1 . 1 . 1 . 1 . 1 . 1 . . Unknown Exits Taken 7 | 1 1 1 1 1 . 1 1 . . . . . . . . . . . . . . . . . Scrap Searched 3 | . . 1 . 2 . . . . . . . . . . . . . . . . . . . . Spaces Dug 83 | . . . . . 8 . . . . 10 . 4 1 1 6 1 . 3 . 1 1 14 . 33 Terrain Destroyed 191 | . . . . 25 17 4 . 1 5 11 5 8 12 2 7 3 1 9 6 8 2 18 5 42 Melee . | . . . . . . . . . . . . . . . . . . . . . . . . . Projectile 147 | . . . . . 9 4 . 1 5 11 5 8 6 2 2 3 1 9 6 8 2 18 5 42 AOE 44 | . . . . 25 8 . . . . . . . 6 . 5 . . . . . . . . . Terrain Rammed . | . . . . . . . . . . . . . . . . . . . . . . . . . Walls Destroyed . | . . . . . . . . . . . . . . . . . . . . . . . . . Machines Disabled . | . . . . . . . . . . . . . . . . . . . . . . . . . Actions | -11 -10 -10 -10 -9 -8 -8 -8 -6 -6 -6 -6 -5 -5 -5 -5 -4 -4 -3 -3 -3 -3 -2 -2 -1 --------- Run | Jun Mat Min Exi Min Mat Sto Rec Fac Gar Fac Gar Fac Gar Fac Gar Fac Gar Res Gar Res Gar Res Gar Acc Total 24419 | 11 91 551 216 727 566 1107 835 1168 561 1677 683 1178 854 818 743 1176 758 1484 1081 1391 570 1106 880 4187 Wait 3367 | . . 9 . 9 57 237 45 146 106 258 57 252 95 88 102 229 17 138 113 205 29 121 23 1031 Move 18879 | 4 87 518 215 675 447 711 758 944 334 1308 492 851 647 663 553 903 642 1252 765 1114 461 887 711 2937 Hop . | . . . . . . . . . . . . . . . . . . . . . . . . . Pick Up 48 | . 1 1 . 1 3 1 4 1 1 9 2 3 . 3 1 4 1 2 3 . 1 3 . 3 Fast Attach 96 | 3 2 4 1 8 10 16 3 3 2 6 4 5 2 5 1 1 . 3 2 4 . 6 . 5 Attach 9 | . . . . . 1 2 . . 1 . . . 1 1 . . . 1 . . . . . 2 Detach 19 | . . . . 1 1 2 1 . . 2 . 3 . 2 . 1 . 2 . 3 . . . 1 Swap 77 | 1 . . . 4 1 4 . . 2 5 2 8 2 3 2 4 3 6 7 2 1 3 2 15 Drop 119 | 3 1 3 . 8 8 17 11 3 2 12 5 7 2 5 1 3 1 4 6 1 1 9 . 6 Fire 1150 | . . 10 . 6 21 55 10 48 68 54 78 30 62 36 46 22 41 60 127 54 49 60 76 137 Melee 2 | . . . . . . . . . . 1 1 . . . . . . . . . . . . . Ram 1 | . . . . . . . . . . . . 1 . . . . . . . . . . . . Kick . | . . . . . . . . . . . . . . . . . . . . . . . . . Crush . | . . . . . . . . . . . . . . . . . . . . . . . . . Escape Stasis 117 | . . . . . . 39 . . . . 2 . . . 5 . 10 . 3 . 6 3 49 . Rewire 50 | . . . . . . 1 . . . . 3 . 27 . . . 19 . . . . . . . Trap . | . . . . . . . . . . . . . . . . . . . . . . . . . Miscellaneous 485 | . . 6 . 15 17 22 3 23 45 22 37 18 16 12 32 9 24 16 55 8 22 14 19 50 Route ------- -11/Junkyard -10/Materials -10/Mines (discovered 3 exits: [*Mat x2] / *Exi) -10/Exiles -9/Mines (discovered 2 exits: *Mat x2) -8/Materials (discovered 3 exits: [*Fac] / *Sto x2) -8/Storage (discovered 2 exits: [*Fac] / *Rec) -8/Recycling -6/Factory (discovered 3 exits: Low x2 / Gar) -6/Garrison -6/Factory (discovered 5 exits: *Fac / *Low x2 / Gar / Gar) -6/Garrison (discovered 3 exits: *Fac x3) -5/Factory (discovered 2 exits: *Fac / Gar) -5/Garrison (discovered 3 exits: *Fac x3) -5/Factory -5/Garrison (discovered 3 exits: *Fac x3) -4/Factory (discovered 3 exits: *Res / Gar / Gar) -4/Garrison (discovered 3 exits: *Res x3) -3/Research (discovered 8 exits: Res x3 / Arm / Qua x2 / Gar / Gar) -3/Garrison (discovered 3 exits: *Res x3) -3/Research (discovered 8 exits: *Res x3 / Arm / Qua x2 / Gar / Gar) -3/Garrison (discovered 2 exits: *Res x2) -2/Research (discovered 4 exits: *Acc / [*Tes] / Gar / Gar) -2/Garrison (discovered 4 exits: *Acc x3 / [*Res]) -1/Access To Epsilon Eridani History --------- Turn | Location | Event 2 | -11/Junkyard | Discovered new exit (range 1) 8 | -11/Junkyard | Upgraded with Propulsion slot (x1) 12 | -11/Junkyard | Entered Materials 39 | -10/Materials | Upgraded with Weapon slot (x1) 79 | -10/Materials | Discovered new exit (range 11) 87 | -10/Materials | Entered Mines 187 | -10/Mines | Discovered new exit (range 5) 231 | -10/Mines | Assembled infested the area 264 | -10/Mines | Core integrity fell below 50% 286 | -10/Mines | Upgraded with Utility slot (x1) 307 | -10/Mines | Build established: Mutant 307 | -10/Mines | Learned Materials emergency access door positions 322 | -10/Mines | Met 8R-AWN 381 | -10/Mines | Discovered new exit (range 7) 423 | -10/Mines | Found a hidden stash of uninstalled traps 514 | -10/Mines | Discovered new exit (range 5) 547 | -10/Mines | Entered Exiles 567 | -10/Exiles | Welcomed by 8R-AWN 579 | -10/Exiles | Met EX-HEX 600 | -10/Exiles | Met EX-BIN 609 | -10/Exiles | Aligned with FarCom system 610 | -10/Exiles | Given EX-Vault access code 629 | -10/Exiles | Opened EX-Vault 639 | -10/Exiles | Upgraded with Utility slot (x2) 639 | -10/Exiles | Found Superbattery 657 | -10/Exiles | Warned to stay clear of 0b10 Research branches 681 | -10/Exiles | Met EX-DEC 706 | -10/Exiles | Discovered new exit (range 14) 715 | -10/Exiles | Left Exiles lab with Superbattery 715 | -10/Exiles | Entered Mines 717 | -9/Mines | Reached level 2 722 | -9/Mines | Upgraded with Utility slot (x1) 726 | -9/Mines | Discovered new exit (range 8) 861 | -9/Mines | Received a Rocket Launcher from a helpful Derelict 934 | -9/Mines | Learned location of Storage (-8) 1014 | -9/Mines | Joined a pair of Derelicts in attacking an 0b10 outpost 1131 | -9/Mines | Met a Derelict shopkeep closing up shop 1212 | -9/Mines | Discovered new exit (range 7) 1608 | -9/Mines | Entered Materials 1608 | -8/Materials | Accompanied by 2 allies 1610 | -8/Materials | Reached level 3 1610 | -8/Materials | Reached level 4 1610 | -8/Materials | Reached level 5 1610 | -8/Materials | Reached level 6 1613 | -8/Materials | Led the pair of lost Derelicts to an unsafe place 1619 | -8/Materials | Upgraded with Utility slot (x3) 1739 | -8/Materials | Discovered new exit (range 14) 1745 | -8/Materials | Reached level 7 1753 | -8/Materials | Upgraded with Propulsion slot (x1) 1789 | -8/Materials | Destroyed 10 combat bots 2134 | -8/Materials | Discovered new exit (range 13) 2228 | -8/Materials | Build established: Scavenger-Mutant 2326 | -8/Materials | Identified exit to Storage 2386 | -8/Materials | Entered Storage 2388 | -8/Storage | Reached level 8 2495 | -8/Storage | Upgraded with Power slot (x1) 2707 | -8/Storage | Build established: Hacker-Mutant 2789 | -8/Storage | Learned location of Armory (-3) 2957 | -8/Storage | Reached level 9 3218 | -8/Storage | Discovered new exit (range 15) 3466 | -8/Storage | Reached level 10 3471 | -8/Storage | Upgraded with Propulsion slot (x1) 3624 | -8/Storage | Used back door to open Recycling access 3624 | -8/Storage | Discovered new exit (range 5) 3659 | -8/Storage | Entered Recycling 3667 | -8/Recycling | Found Scrap Engine 3866 | -8/Recycling | Reached level 11 4223 | -8/Recycling | Discovered new exit (range 16) 4846 | -8/Recycling | Entered Factory 4848 | -6/Factory | Reached level 12 5126 | -6/Factory | Reached level 13 5163 | -6/Factory | Upgraded with Utility slot (x1) 5413 | -6/Factory | Build established: Hacker-Construct 5422 | -6/Factory | Repaired Broken Blade Saw 5462 | -6/Factory | Identified exit to Lower Caves 6068 | -6/Factory | Identified exit to Garrison 6071 | -6/Factory | Entered Garrison 6073 | -6/Garrison | Reached level 14 6095 | -6/Garrison | Upgraded with Weapon slot (x1) 6116 | -6/Garrison | Triggered checkpoint 6196 | -6/Garrison | Installed Relay Interface Framework 6330 | -6/Garrison | Core integrity fell below 50% 6401 | -6/Garrison | Build established: Hacker-Mutant 6429 | -6/Garrison | Spotted B-75 Beast 6545 | -6/Garrison | Destroyed B-75 Beast 6631 | -6/Garrison | Triggered checkpoint 6787 | -6/Garrison | Reached level 15 6886 | -6/Garrison | Discovered new exit (range 12) 6987 | -6/Garrison | Entered Factory 7215 | -6/Factory | Identified exit to Garrison 7302 | -6/Factory | Discovered new exit (range 10) 7345 | -6/Factory | Identified exit to Factory 7457 | -6/Factory | Build established: Hacker-Construct 8132 | -6/Factory | Reached level 16 8268 | -6/Factory | Fabricated System Restoration Module (x2) 8424 | -6/Factory | Repaired System Restoration Module 8523 | -6/Factory | Central database locked down 8787 | -6/Factory | Fabricated Imp. System Restoration Module (x2) 8799 | -6/Factory | Reached level 17 9013 | -6/Factory | Identified exit to Garrison 9015 | -6/Factory | Entered Garrison 9070 | -6/Garrison | Upgraded with Utility slot (x1) 9090 | -6/Garrison | Spotted B-75 Beast 9130 | -6/Garrison | Destroyed B-75 Beast 9170 | -6/Garrison | Triggered checkpoint 9217 | -6/Garrison | Triggered checkpoint 9239 | -6/Garrison | Reached level 18 9308 | -6/Garrison | Expanded RIF knowledge: Hotswap 9333 | -6/Garrison | Discovered exit to Factory (range 8) 9346 | -6/Garrison | Triggered checkpoint 9481 | -6/Garrison | Discovered exit to Factory (range 8) 9636 | -6/Garrison | Triggered checkpoint 9806 | -6/Garrison | Discovered exit to Factory (range 10) 9821 | -6/Garrison | Discovered exit to Factory (range 50) 9821 | -6/Garrison | Discovered exit to Factory (range 41) 9821 | -6/Garrison | Discovered exit to Factory (range 6) 9853 | -6/Garrison | Entered Factory 9853 | -5/Factory | Accompanied by 2 allies 9855 | -5/Factory | Reached level 19 9914 | -5/Factory | Fabricated Cmb. Linear Gravjet (x2) 10477 | -5/Factory | Identified exit to Garrison 10607 | -5/Factory | Discovered new exit (range 12) 10658 | -5/Factory | Found Quantum Capacitor 10718 | -5/Factory | Identified exit to Factory 10749 | -5/Factory | Reached level 20 10926 | -5/Factory | Entered Garrison 10937 | -5/Garrison | Rescued a captive Derelict 10938 | -5/Garrison | Rescued a captive Derelict 10952 | -5/Garrison | Triggered checkpoint 10983 | -5/Garrison | Reached level 21 11007 | -5/Garrison | Spotted B-75 Beast 11016 | -5/Garrison | Triggered checkpoint 11023 | -5/Garrison | Triggered checkpoint 11044 | -5/Garrison | Allies destroyed B-75 Beast 11058 | -5/Garrison | Destroyed 7 combat bots 11120 | -5/Garrison | Spotted B-75 Beast 11122 | -5/Garrison | Destroyed B-75 Beast 11141 | -5/Garrison | Discovered new exit (range 12) 11208 | -5/Garrison | Triggered checkpoint 11373 | -5/Garrison | Discovered new exit (range 12) 11376 | -5/Garrison | Triggered checkpoint 11378 | -5/Garrison | Learned Factory security intel 11382 | -5/Garrison | Identified exit to Factory 11468 | -5/Garrison | Triggered checkpoint 11481 | -5/Garrison | Reached level 22 11487 | -5/Garrison | Upgraded with Utility slot (x1) 11492 | -5/Garrison | Expanded RIF knowledge: Autooverride 11495 | -5/Garrison | Discovered exit to Factory (range 12) 11563 | -5/Garrison | Entered Factory 11563 | -5/Factory | Accompanied by 1 ally 11863 | -5/Factory | First assault squad dispatched 11990 | -5/Factory | Repaired Particle Charger 12152 | -5/Factory | Identified exit to Garrison 12154 | -5/Factory | Entered Garrison 12274 | -5/Garrison | Spotted B-75 Beast 12281 | -5/Garrison | Triggered checkpoint 12285 | -5/Garrison | Crushed by falling debris 12288 | -5/Garrison | Triggered checkpoint 12289 | -5/Garrison | Local machine network offline 12320 | -5/Garrison | Destroyed 7 combat bots 12364 | -5/Garrison | Destroyed B-75 Beast 12434 | -5/Garrison | Discovered exit to Factory (range 10) 12454 | -5/Garrison | Triggered checkpoint 12484 | -5/Garrison | Triggered checkpoint 12548 | -5/Garrison | Triggered checkpoint 12574 | -5/Garrison | Discovered exit to Factory (range 13) 12590 | -5/Garrison | Triggered checkpoint 12667 | -5/Garrison | Discovered exit to Factory (range 15) 12690 | -5/Garrison | Triggered checkpoint 12690 | -5/Garrison | Reached level 23 12719 | -5/Garrison | Entered Factory 12805 | -4/Factory | Identified exit to Garrison 13138 | -4/Factory | Fabricated Enh. Nova Cannon (x1) 13520 | -4/Factory | Reached level 24 13635 | -4/Factory | Discovered new exit (range 16) 13654 | -4/Factory | Identified exit to Garrison 13727 | -4/Factory | Identified exit to Research 13742 | -4/Factory | Entered Garrison 13839 | -4/Garrison | Triggered checkpoint 13883 | -4/Garrison | Garrison Relay disabled 13955 | -4/Garrison | Spotted B-90 Cyclops 13961 | -4/Garrison | Destroyed B-90 Cyclops 14007 | -4/Garrison | Rewired B-90 Cyclops 14054 | -4/Garrison | Triggered checkpoint 14108 | -4/Garrison | Discovered exit to Research (range 12) 14193 | -4/Garrison | Reached level 25 14206 | -4/Garrison | Triggered checkpoint 14230 | -4/Garrison | Triggered checkpoint 14230 | -4/Garrison | Destroyed 8 combat bots 14268 | -4/Garrison | Discovered exit to Research (range 15) 14324 | -4/Garrison | Triggered checkpoint 14457 | -4/Garrison | Expanded RIF knowledge: Zone Cloak 14584 | -4/Garrison | Triggered checkpoint 14596 | -4/Garrison | Triggered checkpoint 14642 | -4/Garrison | Discovered exit to Research (range 10) 14722 | -4/Garrison | Entered Research 14722 | -3/Research | Accompanied by 2 allies 14724 | -3/Research | Reached level 26 14844 | -3/Research | Identified exit to Research 14984 | -3/Research | Reached level 27 14985 | -3/Research | Upgraded with Utility slot (x1) 15123 | -3/Research | Identified exit to Armory 15123 | -3/Research | Identified exit to Quarantine 15657 | -3/Research | Spotted B-86 Titan 15789 | -3/Research | Found Gamma Bomb Array 15920 | -3/Research | Found Unknown Piercing Weapon 15920 | -3/Research | Identified Enh. Force Lance 16058 | -3/Research | Identified exit to Garrison 16654 | -3/Research | Reached level 28 16829 | -3/Research | Identified exit to Garrison 16856 | -3/Research | Entered Garrison 16882 | -3/Garrison | Triggered checkpoint 16920 | -3/Garrison | Upgraded with Power slot (x1) 17020 | -3/Garrison | Spotted B-86 Titan 17072 | -3/Garrison | Destroyed B-86 Titan 17082 | -3/Garrison | Triggered checkpoint 17086 | -3/Garrison | Triggered checkpoint 17093 | -3/Garrison | Core integrity fell below 50% 17132 | -3/Garrison | Destroyed 7 combat bots 17176 | -3/Garrison | Discovered new exit (range 12) 17214 | -3/Garrison | Triggered checkpoint 17219 | -3/Garrison | Build established: Hacker-Mutant 17260 | -3/Garrison | Expanded RIF knowledge: Autoassimilate 17274 | -3/Garrison | Rescued a captive Derelict 17278 | -3/Garrison | Rescued a captive Derelict 17316 | -3/Garrison | Triggered checkpoint 17335 | -3/Garrison | Discovered new exit (range 10) 17568 | -3/Garrison | Triggered checkpoint 17714 | -3/Garrison | Discovered new exit (range 11) 17726 | -3/Garrison | Identified exit to Research 17728 | -3/Garrison | Entered Research 17824 | -3/Research | Reached level 29 17863 | -3/Research | Build established: Hacker-Construct 18255 | -3/Research | Repaired Broken Imp. Trap Scanner 18326 | -3/Research | Found Prototype Processor 18326 | -3/Research | Identified Spectral Analyzer 18335 | -3/Research | Identified exit to Garrison 18548 | -3/Research | Identified exit to Garrison 18625 | -3/Research | Entered Garrison 18662 | -3/Garrison | Triggered checkpoint 18689 | -3/Garrison | Spotted B-86 Titan 18720 | -3/Garrison | Destroyed B-86 Titan 18746 | -3/Garrison | Triggered checkpoint 18764 | -3/Garrison | Triggered checkpoint 18817 | -3/Garrison | Destroyed 7 combat bots 18827 | -3/Garrison | Discovered exit to Research (range 12) 18842 | -3/Garrison | Triggered checkpoint 18874 | -3/Garrison | Expanded RIF knowledge: Robot Detection 18939 | -3/Garrison | Expanded RIF knowledge: Program Shield 18957 | -3/Garrison | Discovered exit to Research (range 11) 18966 | -3/Garrison | Entered Research 18968 | -2/Research | Reached level 30 19086 | -2/Research | Identified exit to Garrison 19274 | -2/Research | Fabricated Adv. Coolant Injector (x2) 19337 | -2/Research | Reached level 31 19511 | -2/Research | Identified exit to Garrison 19584 | -2/Research | Discovered new exit (range 10) 19595 | -2/Research | Discovered new exit (range 10) 19633 | -2/Research | Entered Garrison 19652 | -2/Garrison | Triggered checkpoint 19723 | -2/Garrison | Destroyed 7 combat bots 19741 | -2/Garrison | Spotted B-90 Cyclops 19758 | -2/Garrison | Destroyed B-90 Cyclops 19766 | -2/Garrison | Triggered checkpoint 19767 | -2/Garrison | Triggered checkpoint 19777 | -2/Garrison | Triggered checkpoint 19821 | -2/Garrison | Destroyed 12 combat bots 19857 | -2/Garrison | Learned Access security intel 19860 | -2/Garrison | Discovered new exit (range 10) 19874 | -2/Garrison | Triggered checkpoint 19886 | -2/Garrison | Reached level 32 19897 | -2/Garrison | Discovered new exit (range 6) 19914 | -2/Garrison | Triggered checkpoint 19980 | -2/Garrison | Discovered new exit (range 12) 19996 | -2/Garrison | Expanded RIF knowledge: Code Merge 20035 | -2/Garrison | Found embedded Infiltrators 20086 | -2/Garrison | Triggered checkpoint 20124 | -2/Garrison | Triggered checkpoint 20130 | -2/Garrison | Discovered new exit (range 14) 20162 | -2/Garrison | Entered Access 20162 | -1/Access | Accompanied by 2 allies 20164 | -1/Access | Reached level 33 20471 | -1/Access | Repaired Broken Adv. Cooling System 20850 | -1/Access | Destroyed 7 combat bots 21216 | -1/Access | Reached level 34 21539 | -1/Access | Spotted B-99 Colossus 22140 | -1/Access | Spotted B-99 Colossus 22215 | -1/Access | Upgraded with Utility slot (x1) 22282 | -1/Access | Found Antimissile System 22906 | -1/Access | Discovered new exit (range 5) 22909 | *** | Escaped! Last Messages --------------- 22650_ Destroyed Lgt. Angular Momentum Engine. 22653_ Destroyed Gravmag System. 22654_ Destroyed Adv. Datajack. 22654_ Destroyed Imp. System Restoration Module. 22654_ O-32 Director destroyed. 22706_ U-05 Engineer builds a Wall. 22722_ Acquired 35 matter. 22745_ G-73 Enforcer destroyed. 22746_ Acquired 128 matter. 22747_ Acquired 55 matter. 22751_ R-10 Processor collects Adv. Heat Sink. 22758_ U-05 Engineer builds a Wall. 22788_ Arm. Scrap Engine consumes Enh. Quantum Rifle. 22823_ U-05 Engineer builds a Wall. 22829_ Arm. Scrap Engine consumes Quantum Reactor. 22905_ Connecting with Terminal... >>Open(Door) Sealed Barrier opened. 22906_ The Access Shell folds into the floor. 22906_ EXIT=FOUND Map ----- +----------------------------------------------------+ | #????????########## | | ########+#### #????????????????# | | #################????# !# ########?????????# | | ?????????????????????# / #???????# | | ?????????????????????#!! ##+################## | | ?????????????????????#!! # / | | ??????????####???????#! # ##### ######### | | ########?? ???????# *#!! #???# #???????? | | ? ???????########! #??## ##??????? | | ? ????????###?### #### #?###### | | ######+#?? ??????????????# + #?# | | ??????????# #??????????????########### #?# | | ??????????# #????????????????????????#####?# | | ??????????# #??????????????????????????????# | | ??????????# #??????????????????????????????# "" | | ??????????# #??????????????????????????????# "" | | ??????????# #??????????????????????????????# "" | | ??????????# #??????????????????????????????# "" | | ??????????# #?????###??????????????????????# "" | | ?????????## ####### ##########?????????????# | | #???????##" """T""" "?????????????# | | #########"#k """ """ "????BB???????# ! | | ## "????BB????######### | | ## "????? | | ^ ## "" "????? | | ## @" "????? | | ## "?????? | | ## "????BB ######### | | ## "????BB??????????# | | !!## "????????????????# ! | | ^! ## ####### ##########????????????????# | | ## #?????###?????????????????????????# | | ] ## #?????????????????????????????????# | | ## #?????????????????????????????????# | | ^ ## ??????????????????????????????????# * | | ## #?????????????????????????????????# | | ########### #????????????????????????????????#### | | R #??????????????????????????????? | | #?????????????????????????????? | | #### #######???????????????????????????????? | | ## #??????????????????????????????????????"" "" | | ## #???????????????????????????????????????"R"" | | ## #???????????????????????????????????????"""" | | ## #???????????????????????????????????????? | | ## #???????????????????????????????????????? | | [## ##?????????????????????????#########?#+###+# | | # ########??????????????????#] ] =#?# | | # ! #??????????????????# #?# | | # #??????????????????# #?# | | ### ##### #??????????????????# #?# "" | +----------------------------------------------------+ Best States ------------- Heat Dissipation 166 Coolant Potential 100 Energy Generation 76 Energy Capacity 3099 Matter Stores 500 Matter Capacity 500 Sight Range 17 Robot Scan Range 4 Terrain Scan Range 16 Terrain Scan Density 10 Jamming Range 16 Power Amplification 30 EM Shielding 3 Armor Coverage 600 Resistance: KI 30 Resistance: TH 35 Resistance: EX 25 Resistance: EM 45 Resistance: I 20 Resistance: S 20 Resistance: P 20 Weapon Cycling 15 Phase Shifting 15 Evasion (%) 69 Targeting Accuracy 8 Launcher Accuracy 20 Target Analysis 8 Armor Integrity Analysis 40 Recoil Reduction 4 Matter Filtering 50 Particle Charging 15 Kinecelleration 30 Offensive Hacking 37 Defensive Hacking 24 Relay Coupler Types 1 Relay Coupler Value 86 Authchip Count 3 Item Schematics ----------------- Trap Scanner | -8/Recycling | Hacked System Restoration Module | -6/Factory | Hacked Dynamic Insulation System | -6/Factory | Scanalyzed Imp. System Restoration Module | -6/Factory | Hacked Imp. Dynamic Insulation System | -5/Factory | Hacked Neutrino Core | -5/Factory | Hacked Enh. Quantum Rifle | -3/Research | Hacked Adv. Power Amplifier | -3/Research | Scanalyzed Adv. Phase Shifter | -3/Research | Scanalyzed Adv. Reaction Control System | -3/Research | Scanalyzed Adv. Coolant Injector | -2/Research | Hacked Robot Schematics ------------------ None Fabricated ------------ System Restoration Module | x2 | -6/Factory Imp. System Restoration Module | x2 | -6/Factory Cmb. Linear Gravjet | x2 | -5/Factory | Preloaded Enh. Nova Cannon | x1 | -4/Factory | Preloaded Adv. Coolant Injector | x2 | -2/Research Alien Tech Used ----------------- None Achievements -------------- Cannon Specialist Challenges ------------ None RPGLIKE | -11 -10 -10 -10 -9 -8 -8 -8 -6 -6 -6 -6 -5 -5 -5 -5 -4 -4 -3 -3 -3 -3 -2 -2 -1 --------- Run | Jun Mat Min Exi Min Mat Sto Rec Fac Gar Fac Gar Fac Gar Fac Gar Fac Gar Res Gar Res Gar Res Gar Acc Levels Raised 33 | . . . . 1 5 3 1 2 2 2 1 2 2 . 1 1 1 3 . 1 . 2 1 2 XP Earned 54185 | 4000 . 750 350 1848 7356 3545 1385 3811 2395 2873 1773 2984 2560 486 909 1686 1768 4091 1385 618 498 2227 1464 3423 XP Spent 52295 | 500 750 650 1900 1400 7710 2310 3000 3000 3005 755 4130 2570 3200 230 300 1500 . 5350 1970 1765 . 1605 795 3900 Upgrades 77 | 1 2 2 2 1 9 5 3 2 10 3 4 7 1 1 1 1 . 4 4 4 . 5 3 2 Power Slot 2 | . . . . . . 1 . . . . . . . . . . . . 1 . . . . . Propulsion Slot 3 | 1 . . . . 1 1 . . . . . . . . . . . . . . . . . . Utility Slot 12 | . . 1 2 1 3 . . 1 . . 1 . 1 . . . . 1 . . . . . 1 Weapon Slot 2 | . 1 . . . . . . . 1 . . . . . . . . . . . . . . . Core Integrity 5 | . . . . . . . . . 3 1 . . . . . . . . . 1 . . . . Heat Dissipation 17 | . . . . . 3 1 . . . . 1 4 . 1 . . . 1 1 2 . 2 1 . Energy Generation 1 | . . . . . . . . . . . . . . . 1 . . . . . . . . . Matter Storage 2 | . . . . . . . . . . . . . . . . . . . . . . . 2 . Inventory Capacity 6 | . 1 . . . 1 . 3 . . . . . . . . 1 . . . . . . . . Sight Range 1 | . . . . . . . . . . . . . . . . . . . . . . . . 1 Sensor Range 2 | . . . . . . . . . . . . . . . . . . . . . . 2 . . Ranged Accuracy 5 | . . . . . . 1 . . 2 . . 2 . . . . . . . . . . . . Hack Attack % 4 | . . . . . 1 . . 1 . . 1 . . . . . . . . . . 1 . . Hack Defense % 3 | . . . . . . 1 . . . 1 . . . . . . . 1 . . . . . . KI Resistance % 2 | . . . . . . . . . 1 . . . . . . . . . 1 . . . . . TH Resistance % 3 | . . . . . . . . . 1 . . 1 . . . . . . 1 . . . . . EX Resistance % 1 | . . 1 . . . . . . . . . . . . . . . . . . . . . . KI Damage % 2 | . . . . . . . . . 2 . . . . . . . . . . . . . . . TH Damage % 4 | . . . . . . . . . . 1 1 . . . . . . 1 . 1 . . . . Protomatter Created 7401 | . . 10 . . 84 200 48 225 359 272 572 213 519 119 482 127 548 354 904 122 347 479 498 919 Integrity Restored 9029 | . . 87 . 312 284 390 39 499 959 457 715 276 242 250 637 136 416 246 1081 148 418 204 290 943 Core 7413 | . . 87 . 286 98 275 33 436 902 436 593 192 188 229 504 107 329 197 895 144 317 160 226 779 Parts 1616 | . . . . 26 186 115 6 63 57 21 122 84 54 21 133 29 87 49 186 4 101 44 64 164 Protomatter Decayed 4715 | . . 69 . 43 88 66 35 56 37 117 272 236 514 32 210 80 352 393 491 72 204 235 454 659 Game ------ Seed ArmageddonBombStripper Manual? 0 Play Time 04:52:03 Cumulative 199.7 hours Start 2023.12.31 @ 19:18:15 End 2024.01.01 @ 22:27:56 Sessions 7 Manual Loads 0 Difficulty Adventurer Special Mode Winter2019/RPGLIKE Game No. 66 Rogue 28 Adventurer 38 Explorer 0 Win Type 0 Total 10 Types 8/0/2/0/0/0/0/0/0 Lore% 74 Gallery% 74 Achievement% 64 Wizard Run 0 Options --------- ASCII 0 Keyboard 1 Movement Vi Keybinds 0 Fullscreen 2 Font 18/SmallcapsGlow Map View 76x50 Tactical HUD 1 Map Filters NONE Filters NONE Steam X RUN: 65509b89-30e3-47b7-ab8e-dd25a432742b